[Event "NJSK 2026 Jeugd C"]
[Site "Helmond, Netherlands"]
[Date "2026.04.30"]
[Round "8.7"]
[White "Blok, Lukas"]
[Black "Lalkota, Sai Pranav Tejas"]
[Result "0-1"]
[TimeControl "90min/40moves + 30sec/move"]
[WhiteTitle "-"]
[BlackTitle "-"]
[WhiteFideId "40110494"]
[BlackFideId "1087690"]
[WhiteElo "1991"]
[BlackElo "1830"]

1. c4 {[%clk 01:30:58]} {[%emt 00:00:02]} c5 {[%clk 01:30:54]} {[%emt
00:00:07]} 2. Nc3 {[%clk 01:31:24]} {[%emt 00:00:04]} Nf6 {[%clk 01:31:19]}
{[%emt 00:00:07]} 3. g3 {[%clk 01:31:49]} {[%emt 00:00:03]} Nc6 {[%clk
01:31:41]} {[%emt 00:00:11]} 4. Bg2 {[%clk 01:32:16]} {[%emt 00:00:04]} g6
{[%clk 01:32:05]} {[%emt 00:00:03]} 5. e4 {[%clk 01:32:43]} {[%emt 00:00:03]}
Bg7 {[%clk 01:32:18]} {[%emt 00:00:17]} 6. Nge2 {[%clk 01:33:09]} {[%emt
00:00:04]} d6 {[%clk 01:30:51]} {[%emt 00:01:58]} 7. O-O {[%clk 01:33:05]}
{[%emt 00:00:33]} O-O {[%clk 01:31:13]} {[%emt 00:00:08]} 8. d3 {[%clk
01:33:35]} a6 {[%clk 01:31:01]} {[%emt 00:00:42]} 9. h3 {[%clk 01:33:56]}
{[%emt 00:00:08]} e6 {[%clk 01:31:14]} {[%emt 00:00:18]} 10. Be3 {[%clk
01:30:43]} {[%emt 00:03:43]} Nd7 {[%clk 01:26:00]} {[%emt 00:05:45]} 11. f4
{[%clk 01:27:26]} {[%emt 00:03:45]} f5 {[%clk 01:25:39]} {[%emt 00:00:52]} 12.
Rb1 {[%clk 01:21:51]} {[%emt 00:06:03]} Rb8 {[%clk 01:25:13]} {[%emt 00:00:56]}
13. a4 {[%clk 01:22:11]} {[%emt 00:00:10]} Nd4 {[%clk 01:24:49]} {[%emt
00:00:54]} 14. b4 {[%clk 01:20:42]} {[%emt 00:01:58]} b6 {[%clk 01:24:07]}
{[%emt 00:01:13]} 15. Kh2 {[%clk 01:15:23]} {[%emt 00:05:49]} Bb7 {[%clk
01:22:49]} {[%emt 00:01:48]} 16. Bf2 {[%clk 01:09:54]} {[%emt 00:05:58]} Qc7
{[%clk 01:20:03]} {[%emt 00:03:17]} 17. b5 {[%clk 00:53:46]} {[%emt 00:16:38]}
a5 {[%clk 01:20:20]} {[%emt 00:00:13]} 18. Qd2 {[%clk 00:53:19]} {[%emt
00:00:56]} Rbe8 {[%clk 01:20:30]} {[%emt 00:00:20]} 19. Nd1 {[%clk 00:45:07]}
{[%emt 00:08:42]} Ba8 {[%clk 01:14:53]} {[%emt 00:06:08]} 20. Nec3 {[%clk
00:43:00]} {[%emt 00:02:37]} Bb7 {[%clk 01:13:46]} {[%emt 00:01:37]} 21. Ne3
{[%clk 00:41:16]} {[%emt 00:02:13]} Bh6 {[%clk 01:13:16]} {[%emt 00:01:01]} 22.
Qd1 {[%clk 00:40:07]} {[%emt 00:01:38]} Bg7 {[%clk 01:13:00]} {[%emt 00:00:47]}
23. Be1 {[%clk 00:39:49]} {[%emt 00:00:48]} Bh6 {[%clk 01:13:04]} {[%emt
00:00:25]} 24. Rb2 {[%clk 00:39:33]} {[%emt 00:00:46]} Rf7 {[%clk 01:10:17]}
{[%emt 00:03:17]} 25. Rbf2 {[%clk 00:39:28]} {[%emt 00:00:35]} Ref8 {[%clk
01:10:25]} {[%emt 00:00:22]} 26. Bd2 {[%clk 00:38:09]} {[%emt 00:01:48]} Qd8
{[%clk 01:09:02]} {[%emt 00:01:54]} 27. exf5 {[%clk 00:36:09]} {[%emt
00:02:30]} Bxg2 {[%clk 01:08:49]} {[%emt 00:00:43]} 28. fxe6 {[%clk 00:36:30]}
{[%emt 00:00:10]} Bxf1 {[%clk 01:05:30]} {[%emt 00:03:48]} 29. exf7+ {[%clk
00:36:55]} {[%emt 00:00:05]} Rxf7 {[%clk 01:05:53]} {[%emt 00:00:08]} 30. Qxf1
{[%clk 00:36:50]} {[%emt 00:00:34]} Nf6 {[%clk 01:04:48]} {[%emt 00:01:35]} 31.
Ned5 {[%clk 00:36:48]} {[%emt 00:00:32]} Nxd5 {[%clk 01:05:11]} {[%emt
00:00:08]} 32. Nxd5 {[%clk 00:37:10]} {[%emt 00:00:07]} Nb3 {[%clk 01:05:01]}
{[%emt 00:00:39]} 33. Bc3 {[%clk 00:37:10]} {[%emt 00:00:31]} Bg7 {[%clk
01:05:15]} {[%emt 00:00:16]} 34. Bxg7 {[%clk 00:37:28]} {[%emt 00:00:12]} Kxg7
{[%clk 01:05:38]} {[%emt 00:00:07]} 35. Re2 {[%clk 00:36:49]} {[%emt 00:01:07]}
Nd4 {[%clk 01:06:01]} {[%emt 00:00:09]} 36. Re4 {[%clk 00:36:54]} {[%emt
00:00:25]} Rd7 {[%clk 01:06:16]} {[%emt 00:00:15]} 37. Kg2 {[%clk 00:37:11]}
{[%emt 00:00:12]} Kf7 {[%clk 01:05:52]} {[%emt 00:00:55]} 38. Qe1 {[%clk
00:36:26]} {[%emt 00:01:14]} Nc2 {[%clk 01:06:04]} {[%emt 00:00:19]} 39. Qd1
{[%clk 00:36:34]} {[%emt 00:00:21]} Nd4 {[%clk 01:06:28]} {[%emt 00:00:07]} 40.
Qg4 {[%clk 00:36:51]} {[%emt 00:00:12]} Nf5 {[%clk 01:06:19]} {[%emt 00:00:39]}
41. h4 {[%clk 00:34:20]} {[%emt 00:02:59]} h5 {[%clk 01:06:28]} {[%emt
00:00:23]} 42. Qe2 {[%clk 00:34:34]} {[%emt 00:00:12]} Nd4 {[%clk 01:06:39]}
{[%emt 00:00:23]} 43. Qd1 {[%clk 00:33:56]} {[%emt 00:01:08]} Nf5 {[%clk
01:05:47]} {[%emt 00:01:23]} 44. Qe1 {[%clk 00:33:30]} {[%emt 00:00:55]} Nd4
{[%clk 01:06:08]} {[%emt 00:00:09]} 45. Qf2 {[%clk 00:29:40]} {[%emt 00:04:19]}
Nf5 {[%clk 01:06:30]} {[%emt 00:00:09]} 46. Re1 {[%clk 00:29:46]} {[%emt
00:00:23]} Rb7 {[%clk 01:03:51]} {[%emt 00:03:07]} 47. Qe2 {[%clk 00:30:06]}
{[%emt 00:00:12]} Qd7 {[%clk 01:04:04]} {[%emt 00:00:17]} 48. Qe4 {[%clk
00:29:15]} {[%emt 00:01:16]} Nd4 {[%clk 01:04:19]} {[%emt 00:00:20]} 49. Nc3
{[%clk 00:28:12]} {[%emt 00:01:33]} Rb8 {[%clk 01:00:11]} {[%emt 00:04:39]} 50.
Qd5+ {[%clk 00:28:28]} {[%emt 00:00:13]} Kg7 {[%clk 01:00:28]} {[%emt
00:00:14]} 51. Qg5 {[%clk 00:24:29]} {[%emt 00:04:29]} Ne6 {[%clk 00:58:29]}
{[%emt 00:02:29]} 52. Qd5 {[%clk 00:24:22]} {[%emt 00:00:37]} Nd4 {[%clk
00:58:54]} {[%emt 00:00:05]} 53. Ne4 {[%clk 00:18:36]} {[%emt 00:06:17]} Re8
{[%clk 00:59:13]} {[%emt 00:00:10]} 54. Qg5 {[%clk 00:16:49]} {[%emt 00:02:14]}
Qe6 {[%clk 00:57:32]} {[%emt 00:02:14]} 55. Qd5 {[%clk 00:16:23]} {[%emt
00:00:56]} Qxd5 {[%clk 00:53:21]} {[%emt 00:04:41]} 56. cxd5 {[%clk 00:16:52]}
Nc2 {[%clk 00:53:49]} {[%emt 00:00:02]} 57. Rc1 {[%clk 00:16:02]} {[%emt
00:01:19]} Ne3+ {[%clk 00:54:12]} {[%emt 00:00:07]} 58. Kf2 {[%clk 00:16:32]}
Nxd5 {[%clk 00:54:29]} {[%emt 00:00:13]} 59. Nxd6 {[%clk 00:17:01]} Rd8 {[%clk
00:54:08]} {[%emt 00:00:51]} 60. Nc4 {[%clk 00:16:15]} {[%emt 00:01:15]} Nb4
{[%clk 00:54:31]} {[%emt 00:00:07]} 61. Rd1 {[%clk 00:16:30]} {[%emt 00:00:15]}
Nd5 {[%clk 00:51:16]} {[%emt 00:03:46]} 62. Re1 {[%clk 00:12:59]} {[%emt
00:04:02]} Kf6 {[%clk 00:51:35]} {[%emt 00:00:10]} 63. Ke2 {[%clk 00:09:30]}
{[%emt 00:04:00]} Kf7 {[%clk 00:47:16]} {[%emt 00:04:48]} 64. Kd2 {[%clk
00:09:46]} {[%emt 00:00:13]} Kf6 {[%clk 00:47:38]} {[%emt 00:00:08]} 65. Ne5
{[%clk 00:08:23]} {[%emt 00:01:54]} Nb4 {[%clk 00:47:33]} {[%emt 00:00:34]} 66.
Re4 {[%clk 00:08:00]} {[%emt 00:00:54]} Kf5 {[%clk 00:47:35]} {[%emt 00:00:28]}
67. Rc4 {[%clk 00:07:54]} {[%emt 00:00:35]} Rd6 {[%clk 00:46:45]} {[%emt
00:01:19]} 68. Ke3 {[%clk 00:07:00]} {[%emt 00:01:24]} Nd5+ {[%clk 00:46:53]}
{[%emt 00:00:24]} 69. Ke2 {[%clk 00:07:22]} {[%emt 00:00:08]} Nb4 {[%clk
00:47:06]} {[%emt 00:00:17]} 70. Re4 {[%clk 00:04:27]} {[%emt 00:03:24]} Nxd3
{[%clk 00:46:01]} {[%emt 00:01:36]} 71. Re3 {[%clk 00:04:03]} {[%emt 00:00:55]}
Nxe5 {[%clk 00:46:20]} {[%emt 00:00:10]} 72. Rxe5+ {[%clk 00:04:17]} {[%emt
00:00:17]} Kf6 {[%clk 00:46:44]} {[%emt 00:00:05]} 73. Re8 {[%clk 00:02:40]}
{[%emt 00:02:07]} Re6+ {[%clk 00:45:22]} {[%emt 00:01:52]} 74. Rxe6+ {[%clk
00:02:28]} {[%emt 00:00:41]} Kxe6 {[%clk 00:45:48]} {[%emt 00:00:05]} 75. Kf3
{[%clk 00:01:20]} {[%emt 00:01:38]} Kf5 {[%clk 00:46:12]} {[%emt 00:00:05]} 76.
Ke3 {[%clk 00:01:41]} {[%emt 00:00:10]} Kg4 {[%clk 00:46:33]} {[%emt 00:00:08]}
77. Kf2 {[%clk 00:01:33]} {[%emt 00:00:39]} c4 {[%clk 00:46:17]} {[%emt
00:00:46]} 78. Ke3 {[%clk 00:01:59]} {[%emt 00:00:04]} Kxg3 {[%clk 00:46:43]}
{[%emt 00:00:04]} 79. Kd4 {[%clk 00:02:26]} {[%emt 00:00:04]} Kxh4 {[%clk
00:46:29]} {[%emt 00:00:44]} 80. Kxc4 {[%clk 00:02:53]} {[%emt 00:00:03]} Kg4
{[%clk 00:46:57]} {[%emt 00:00:02]} 81. Kd5 {[%clk 00:03:15]} {[%emt 00:00:08]}
h4 {[%clk 00:47:23]} {[%emt 00:00:04]} 82. Kc6 {[%clk 00:03:43]} {[%emt
00:00:02]} h3 {[%clk 00:47:49]} {[%emt 00:00:03]} 83. Kxb6 {[%clk 00:04:10]}
{[%emt 00:00:04]} h2 {[%clk 00:48:16]} {[%emt 00:00:02]} 0-1

[Event "NJSK 2026 Jeugd C"]
[Site "Helmond, Netherlands"]
[Date "2026.04.30"]
[Round "8.8"]
[White "Nadrshin, Oleg"]
[Black "Koppenens, Oscar"]
[Result "1-0"]
[TimeControl "90min/40moves + 30sec/move"]
[WhiteTitle "-"]
[BlackTitle "-"]
[WhiteFideId "40111873"]
[BlackFideId "1087940"]
[WhiteElo "1894"]
[BlackElo "2036"]

1. e4 {[%clk 01:30:57]} {[%emt 00:00:03]} c5 {[%clk 01:30:57]} {[%emt
00:00:04]} 2. Nf3 {[%clk 01:31:23]} {[%emt 00:00:05]} e6 {[%clk 01:31:22]}
{[%emt 00:00:04]} 3. d4 {[%clk 01:31:49]} {[%emt 00:00:04]} cxd4 {[%clk
01:31:45]} {[%emt 00:00:07]} 4. Nxd4 {[%clk 01:32:12]} {[%emt 00:00:09]} Nf6
{[%clk 01:32:11]} {[%emt 00:00:05]} 5. Nc3 {[%clk 01:32:37]} {[%emt 00:00:02]}
Nc6 {[%clk 01:32:38]} {[%emt 00:00:02]} 6. Nxc6 {[%clk 01:32:59]} {[%emt
00:00:08]} bxc6 {[%clk 01:33:00]} {[%emt 00:00:08]} 7. e5 {[%clk 01:33:26]}
{[%emt 00:00:03]} Nd5 {[%clk 01:33:24]} {[%emt 00:00:06]} 8. Ne4 {[%clk
01:33:53]} {[%emt 00:00:03]} Qc7 {[%clk 01:33:50]} {[%emt 00:00:05]} 9. f4
{[%clk 01:34:16]} {[%emt 00:00:06]} Qb6 {[%clk 01:34:18]} {[%emt 00:00:02]} 10.
c4 {[%clk 01:34:42]} {[%emt 00:00:05]} Bb4+ {[%clk 01:34:44]} {[%emt 00:00:03]}
11. Ke2 {[%clk 01:35:06]} {[%emt 00:00:05]} f5 {[%clk 01:35:11]} {[%emt
00:00:03]} 12. exf6 {[%clk 01:34:59]} {[%emt 00:00:38]} Nxf6 {[%clk 01:35:35]}
{[%emt 00:00:06]} 13. Be3 {[%clk 01:34:50]} {[%emt 00:00:40]} Qd8 {[%clk
01:35:59]} {[%emt 00:00:06]} 14. Nd6+ {[%clk 01:35:09]} {[%emt 00:00:11]} Bxd6
{[%clk 01:36:23]} {[%emt 00:00:06]} 15. Qxd6 {[%clk 01:35:34]} {[%emt
00:00:04]} Bb7 {[%clk 01:36:47]} {[%emt 00:00:06]} 16. Rd1 {[%clk 01:34:35]}
{[%emt 00:01:28]} Rc8 {[%clk 01:36:21]} {[%emt 00:00:56]} 17. g4 {[%clk
01:22:03]} {[%emt 00:13:03]} c5 {[%clk 01:36:45]} {[%emt 00:00:06]} 18. Rg1
{[%clk 01:22:13]} {[%emt 00:00:20]} Rf8 {[%clk 01:37:06]} {[%emt 00:00:09]} 19.
Bg2 {[%clk 01:11:59]} {[%emt 00:10:43]} Bxg2 {[%clk 01:24:21]} {[%emt
00:13:14]} 20. Rxg2 {[%clk 01:12:21]} {[%emt 00:00:09]} Rc6 {[%clk 01:18:09]}
{[%emt 00:06:42]} 21. Qxc6 {[%clk 01:05:49]} {[%emt 00:07:02]} dxc6 {[%clk
01:18:33]} {[%emt 00:00:05]} 22. Rxd8+ {[%clk 01:06:14]} Kxd8 {[%clk 01:18:58]}
{[%emt 00:00:10]} 23. Bxc5 {[%clk 01:06:20]} {[%emt 00:00:26]} Rf7 {[%clk
01:19:20]} {[%emt 00:00:05]} 24. Ke3 {[%clk 00:57:18]} {[%emt 00:09:32]} a6
{[%clk 01:17:09]} {[%emt 00:02:43]} 25. h3 {[%clk 00:50:01]} {[%emt 00:07:47]}
g6 {[%clk 01:14:30]} {[%emt 00:03:08]} 26. Rd2+ {[%clk 00:47:04]} {[%emt
00:03:28]} Kc7 {[%clk 01:14:48]} {[%emt 00:00:12]} 27. Bd6+ {[%clk 00:40:30]}
{[%emt 00:07:04]} Kb6 {[%clk 01:15:09]} {[%emt 00:00:08]} 28. Rd3 {[%clk
00:38:06]} {[%emt 00:02:54]} c5 {[%clk 01:14:23]} {[%emt 00:01:16]} 29. Be5
{[%clk 00:37:28]} {[%emt 00:01:09]} Ne8 {[%clk 01:13:35]} {[%emt 00:01:18]} 30.
Rd8 {[%clk 00:32:21]} {[%emt 00:05:37]} Re7 {[%clk 01:13:58]} {[%emt 00:00:06]}
31. Ke4 {[%clk 00:30:20]} {[%emt 00:02:31]} Kc6 {[%clk 01:13:26]} {[%emt
00:01:01]} 32. g5 {[%clk 00:25:54]} {[%emt 00:04:57]} Nc7 {[%clk 01:10:02]}
{[%emt 00:03:52]} 33. Rc8 {[%clk 00:23:37]} {[%emt 00:02:50]} Kb7 {[%clk
01:09:37]} {[%emt 00:00:55]} 34. Rxc7+ {[%clk 00:23:55]} {[%emt 00:00:13]} Rxc7
{[%clk 01:10:02]} {[%emt 00:00:04]} 35. Bxc7 {[%clk 00:24:21]} {[%emt
00:00:04]} Kxc7 {[%clk 01:10:25]} {[%emt 00:00:06]} 36. Ke5 {[%clk 00:24:25]}
{[%emt 00:00:26]} Kd7 {[%clk 01:10:49]} {[%emt 00:00:06]} 37. Kf6 {[%clk
00:24:11]} {[%emt 00:00:46]} Kd6 {[%clk 01:11:09]} {[%emt 00:00:08]} 38. Kg7
{[%clk 00:24:09]} {[%emt 00:00:33]} Ke7 {[%clk 01:10:34]} {[%emt 00:01:05]} 39.
Kxh7 {[%clk 00:24:11]} {[%emt 00:00:28]} Kf7 {[%clk 01:10:26]} {[%emt
00:00:36]} 40. h4 {[%clk 00:24:35]} {[%emt 00:00:08]} a5 {[%clk 01:10:47]}
{[%emt 00:00:09]} 41. a4 {[%clk 00:24:57]} {[%emt 00:00:09]} 1-0

[Event "NJSK 2026 Jeugd C"]
[Site "Helmond, Netherlands"]
[Date "2026.04.30"]
[Round "8.9"]
[White "De Wit, Jim"]
[Black "Uitermark, Imre"]
[Result "0-1"]
[TimeControl "90min/40moves + 30sec/move"]
[WhiteTitle "-"]
[BlackTitle "-"]
[WhiteFideId "1097326"]
[BlackFideId "40105199"]
[WhiteElo "1749"]
[BlackElo "1957"]

1. e4 {[%clk 01:30:57]} {[%emt 00:00:02]} e6 {[%clk 01:30:58]} {[%emt
00:00:03]} 2. d4 {[%clk 01:31:23]} {[%emt 00:00:04]} d5 {[%clk 01:31:25]}
{[%emt 00:00:02]} 3. Nc3 {[%clk 01:31:42]} {[%emt 00:00:13]} dxe4 {[%clk
01:31:47]} {[%emt 00:00:08]} 4. Nxe4 {[%clk 01:32:01]} {[%emt 00:00:09]} Nd7
{[%clk 01:32:16]} {[%emt 00:00:02]} 5. Nf3 {[%clk 01:31:05]} {[%emt 00:01:26]}
Ngf6 {[%clk 01:32:42]} {[%emt 00:00:04]} 6. Ng3 {[%clk 01:30:29]} {[%emt
00:01:06]} b6 {[%clk 01:32:36]} {[%emt 00:00:37]} 7. Be2 {[%clk 01:25:58]}
{[%emt 00:05:01]} Bb7 {[%clk 01:33:01]} {[%emt 00:00:05]} 8. O-O {[%clk
01:26:05]} {[%emt 00:00:22]} Be7 {[%clk 01:33:15]} {[%emt 00:00:15]} 9. c3
{[%clk 01:25:01]} {[%emt 00:01:35]} O-O {[%clk 01:33:37]} {[%emt 00:00:07]} 10.
Re1 {[%clk 01:23:47]} {[%emt 00:01:44]} c5 {[%clk 01:33:36]} {[%emt 00:00:32]}
11. dxc5 {[%clk 01:20:40]} {[%emt 00:03:37]} Nxc5 {[%clk 01:33:13]} {[%emt
00:00:52]} 12. Be3 {[%clk 01:18:46]} {[%emt 00:02:25]} Qc7 {[%clk 01:33:05]}
{[%emt 00:00:38]} 13. Bd4 {[%clk 01:12:42]} {[%emt 00:06:32]} Rfd8 {[%clk
01:31:50]} {[%emt 00:01:45]} 14. Qc2 {[%clk 01:10:19]} {[%emt 00:02:52]} Rac8
{[%clk 01:31:35]} {[%emt 00:00:45]} 15. Nd2 {[%clk 01:01:48]} {[%emt 00:09:01]}
Na6 {[%clk 01:28:55]} {[%emt 00:03:10]} 16. Bxa6 {[%clk 00:47:00]} {[%emt
00:15:19]} Bxa6 {[%clk 01:26:54]} {[%emt 00:02:30]} 17. Nf3 {[%clk 00:42:41]}
{[%emt 00:04:49]} h6 {[%clk 01:25:35]} {[%emt 00:01:49]} 18. Be5 {[%clk
00:41:39]} {[%emt 00:01:32]} Qc4 {[%clk 01:23:38]} {[%emt 00:02:27]} 19. b3
{[%clk 00:40:11]} {[%emt 00:01:59]} Qc5 {[%clk 01:22:21]} {[%emt 00:01:46]} 20.
Bxf6 {[%clk 00:35:40]} {[%emt 00:05:01]} Bxf6 {[%clk 01:21:15]} {[%emt
00:01:36]} 21. Ne4 {[%clk 00:36:04]} {[%emt 00:00:07]} Qe7 {[%clk 01:21:41]}
{[%emt 00:00:03]} 22. Nxf6+ {[%clk 00:36:27]} {[%emt 00:00:08]} Qxf6 {[%clk
01:21:56]} {[%emt 00:00:15]} 23. Rac1 {[%clk 00:33:26]} {[%emt 00:03:31]} Bb7
{[%clk 01:16:59]} {[%emt 00:05:26]} 24. Nd2 {[%clk 00:31:07]} {[%emt 00:02:48]}
Bxg2 {[%clk 01:15:53]} {[%emt 00:01:36]} 25. f3 {[%clk 00:28:49]} {[%emt
00:02:49]} Bxf3 {[%clk 01:15:08]} {[%emt 00:01:15]} 26. Rf1 {[%clk 00:29:14]}
{[%emt 00:00:05]} Qg5+ {[%clk 01:15:33]} {[%emt 00:00:05]} 27. Kf2 {[%clk
00:29:35]} {[%emt 00:00:09]} Rxd2+ {[%clk 01:15:59]} {[%emt 00:00:04]} 0-1

[Event "NJSK 2026 Jeugd C"]
[Site "Helmond, Netherlands"]
[Date "2026.04.30"]
[Round "8.10"]
[White "Ozbek, Ahmet Naim"]
[Black "Suthan, Aadvik"]
[Result "1/2-1/2"]
[TimeControl "90min/40moves + 30sec/move"]
[WhiteTitle "-"]
[BlackTitle "-"]
[WhiteFideId "40101975"]
[BlackFideId "1095765"]
[WhiteElo "1869"]
[BlackElo "1822"]

1. d4 {[%clk 01:30:36]} {[%emt 00:00:23]} Nf6 {[%clk 01:30:49]} {[%emt
00:00:12]} 2. c4 {[%clk 01:31:00]} {[%emt 00:00:06]} e6 {[%clk 01:31:12]}
{[%emt 00:00:07]} 3. g3 {[%clk 01:31:26]} {[%emt 00:00:04]} d5 {[%clk
01:31:34]} {[%emt 00:00:07]} 4. Nf3 {[%clk 01:31:52]} {[%emt 00:00:04]} Bb4+
{[%clk 01:31:42]} {[%emt 00:00:22]} 5. Bd2 {[%clk 01:32:17]} {[%emt 00:00:06]}
Be7 {[%clk 01:31:44]} {[%emt 00:00:28]} 6. Bg2 {[%clk 01:32:41]} {[%emt
00:00:05]} c6 {[%clk 01:31:56]} {[%emt 00:00:18]} 7. O-O {[%clk 01:32:48]}
{[%emt 00:00:23]} O-O {[%clk 01:32:19]} {[%emt 00:00:07]} 8. Bf4 {[%clk
01:32:56]} {[%emt 00:00:23]} Nbd7 {[%clk 01:32:34]} {[%emt 00:00:15]} 9. Nc3
{[%clk 01:31:26]} {[%emt 00:02:00]} b6 {[%clk 01:30:27]} {[%emt 00:02:37]} 10.
cxd5 {[%clk 01:31:32]} {[%emt 00:00:24]} exd5 {[%clk 01:30:24]} {[%emt
00:00:32]} 11. Rc1 {[%clk 01:30:45]} {[%emt 00:01:17]} Bb7 {[%clk 01:28:48]}
{[%emt 00:02:06]} 12. Qb3 {[%clk 01:27:55]} {[%emt 00:03:20]} Re8 {[%clk
01:23:55]} {[%emt 00:05:21]} 13. Rfd1 {[%clk 01:27:37]} {[%emt 00:00:51]} Bf8
{[%clk 01:23:46]} {[%emt 00:00:37]} 14. a4 {[%clk 01:24:23]} {[%emt 00:03:45]}
h6 {[%clk 01:22:42]} {[%emt 00:01:32]} 15. h3 {[%clk 01:23:28]} {[%emt
00:01:25]} Qe7 {[%clk 01:20:19]} {[%emt 00:02:53]} 16. Ne1 {[%clk 01:19:21]}
{[%emt 00:04:38]} Rac8 {[%clk 01:07:32]} {[%emt 00:13:17]} 17. Nd3 {[%clk
01:16:47]} {[%emt 00:03:03]} Ba6 {[%clk 01:02:31]} {[%emt 00:05:32]} 18. Be3
{[%clk 01:14:21]} {[%emt 00:02:56]} Red8 {[%clk 00:54:17]} {[%emt 00:08:45]} 19.
Qa2 {[%clk 01:11:17]} {[%emt 00:03:33]} Ne8 {[%clk 00:48:36]} {[%emt 00:06:10]}
20. a5 {[%clk 01:04:24]} {[%emt 00:07:25]} b5 {[%clk 00:44:29]} {[%emt
00:04:37]} 21. Bf4 {[%clk 00:52:45]} {[%emt 00:12:09]} b4 {[%clk 00:37:35]}
{[%emt 00:07:24]} 22. Na4 {[%clk 00:52:50]} {[%emt 00:00:25]} Bc4 {[%clk
00:37:45]} {[%emt 00:00:20]} 23. b3 {[%clk 00:52:47]} {[%emt 00:00:33]} Bb5
{[%clk 00:38:03]} {[%emt 00:00:11]} 24. Rc2 {[%clk 00:52:04]} {[%emt 00:01:13]}
Nef6 {[%clk 00:37:43]} {[%emt 00:00:50]} 25. Ndc5 {[%clk 00:51:28]} {[%emt
00:01:06]} Nxc5 {[%clk 00:32:42]} {[%emt 00:05:31]} 26. Nxc5 {[%clk 00:51:34]}
{[%emt 00:00:24]} Ne4 {[%clk 00:31:59]} {[%emt 00:01:13]} 27. Nxe4 {[%clk
00:49:26]} {[%emt 00:02:37]} dxe4 {[%clk 00:32:15]} {[%emt 00:00:14]} 28. Qb1
{[%clk 00:43:11]} {[%emt 00:06:46]} Rd7 {[%clk 00:26:57]} {[%emt 00:05:48]} 29.
Rcd2 {[%clk 00:40:17]} {[%emt 00:03:24]} f5 {[%clk 00:26:11]} {[%emt 00:01:16]}
30. Bf1 {[%clk 00:38:17]} {[%emt 00:02:29]} Rcd8 {[%clk 00:25:33]} {[%emt
00:01:08]} 31. e3 {[%clk 00:38:15]} {[%emt 00:00:32]} Rd5 {[%clk 00:25:19]}
{[%emt 00:00:40]} 32. Bxb5 {[%clk 00:35:50]} {[%emt 00:03:00]} Rxb5 {[%clk
00:24:55]} {[%emt 00:00:54]} 33. Qc2 {[%clk 00:36:07]} {[%emt 00:00:13]} Qe6
{[%clk 00:23:31]} {[%emt 00:01:52]} 34. Rc1 {[%clk 00:35:34]} {[%emt 00:01:05]}
Qd5 {[%clk 00:23:02]} {[%emt 00:00:58]} 35. Qxc6 {[%clk 00:34:02]} {[%emt
00:02:02]} Qxc6 {[%clk 00:22:47]} {[%emt 00:00:45]} 36. Rxc6 {[%clk 00:34:27]}
{[%emt 00:00:06]} Rxa5 {[%clk 00:22:48]} {[%emt 00:00:29]} 37. Bc7 {[%clk
00:34:51]} {[%emt 00:00:06]} Ra1+ {[%clk 00:23:00]} {[%emt 00:00:18]} 38. Kg2
{[%clk 00:35:16]} {[%emt 00:00:04]} Rd7 {[%clk 00:23:20]} {[%emt 00:00:10]} 39.
d5 {[%clk 00:34:29]} {[%emt 00:01:18]} Ra3 {[%clk 00:23:42]} {[%emt 00:00:08]}
40. d6 {[%clk 00:33:03]} {[%emt 00:01:55]} Rxb3 {[%clk 00:23:56]} {[%emt
00:00:17]} 41. Ra2 {[%clk 00:33:25]} {[%emt 00:00:07]} Rd3 {[%clk 00:24:04]}
{[%emt 00:00:22]} 42. Rxa7 {[%clk 00:33:27]} {[%emt 00:00:29]} b3 {[%clk
00:22:49]} {[%emt 00:01:46]} 43. Rb7 {[%clk 00:33:41]} {[%emt 00:00:15]} Bxd6
{[%clk 00:19:10]} {[%emt 00:04:08]} 44. Rb8+ {[%clk 00:33:55]} {[%emt
00:00:17]} Kh7 {[%clk 00:19:28]} {[%emt 00:00:11]} 45. Bxd6 {[%clk 00:34:18]}
{[%emt 00:00:08]} R7xd6 {[%clk 00:19:40]} {[%emt 00:00:18]} 46. Rxd6 {[%clk
00:34:38]} {[%emt 00:00:09]} Rxd6 {[%clk 00:19:56]} {[%emt 00:00:15]} 47. Rxb3
{[%clk 00:34:34]} {[%emt 00:00:02]} 1/2-1/2